[Event "Titled Tuesday Blitz April 25 Late 2023"]
[White "Fressinet, Laurent"]
[Black "Ronka, Erik"]
[WhiteFideId "608742"]
[BlackFideId "505080"]
[WhiteElo "2633"]
[BlackElo "2264"]
[Result "1-0"]
[Round "02"]
[TimeControl "180+2"]
[Date "2023.04.25"]
[WhiteClock "0:00:14"]
[BlackClock "0:00:04"]

1. d4 {[%clk 0:02:53]}  d5 {[%clk 0:02:59]} 2. Nf3 {[%clk 0:02:52]}  Nf6 {[%clk 0:02:59]} 3. Bg5 {[%clk 0:02:53]}  Ne4 {[%clk 0:02:59]} 4. Bh4 {[%clk 0:02:51]}  g6 {[%clk 0:02:45]} 5. Nbd2 {[%clk 0:02:47]}  Bg7 {[%clk 0:02:40]} 6. e3 {[%clk 0:02:47]}  c5 {[%clk 0:02:38]} 7. c3 {[%clk 0:02:45]}  cxd4 {[%clk 0:02:33]} 8. cxd4 {[%clk 0:02:44]}  Nxd2 {[%clk 0:02:25]} 9. Qxd2 {[%clk 0:02:42]}  O-O {[%clk 0:02:24]} 10. Rc1 {[%clk 0:02:40]}  Nc6 {[%clk 0:02:22]} 11. Bb5 {[%clk 0:02:39]}  Bd7 {[%clk 0:02:20]} 12. O-O {[%clk 0:02:38]}  Rc8 {[%clk 0:02:12]} 13. Rc3 {[%clk 0:02:19]}  Re8 {[%clk 0:02:05]} 14. Rfc1 {[%clk 0:02:14]}  Qa5 {[%clk 0:02:03]} 15. Be2 {[%clk 0:01:53]}  Qb6 {[%clk 0:01:33]} 16. Bg3 {[%clk 0:01:50]}  a6 {[%clk 0:01:20]} 17. Rb3 {[%clk 0:01:45]}  Qa7 {[%clk 0:01:20]} 18. h3 {[%clk 0:01:45]}  e6 {[%clk 0:01:18]} 19. Bd6 {[%clk 0:01:43]}  Bf8 {[%clk 0:01:15]} 20. Bxf8 {[%clk 0:01:42]}  Kxf8 {[%clk 0:01:16]} 21. e4 {[%clk 0:01:36]}  Kg7 {[%clk 0:01:06]} 22. exd5 {[%clk 0:01:21]}  exd5 {[%clk 0:01:06]} 23. Rbc3 {[%clk 0:01:21]}  Bf5 {[%clk 0:00:50]} 24. Bf1 {[%clk 0:01:14]}  Rcd8 {[%clk 0:00:46]} 25. Rc5 {[%clk 0:00:51]}  Qb6 {[%clk 0:00:43]} 26. a3 {[%clk 0:00:44]}  Rd7 {[%clk 0:00:26]} 27. b4 {[%clk 0:00:43]}  Qd8 {[%clk 0:00:26]} 28. Bxa6 {[%clk 0:00:36]}  Be4 {[%clk 0:00:20]} 29. Ng5 {[%clk 0:00:34]}  Nxb4 {[%clk 0:00:17]} 30. Bb5 {[%clk 0:00:27]}  Nc6 {[%clk 0:00:15]} 31. Rxc6 {[%clk 0:00:26]}  bxc6 {[%clk 0:00:16]} 32. Bxc6 {[%clk 0:00:26]}  Rc7 {[%clk 0:00:05]} 33. Bxe8 {[%clk 0:00:25]}  Rxc1+ {[%clk 0:00:06]} 34. Qxc1 {[%clk 0:00:25]}  Qxe8 {[%clk 0:00:07]} 35. Qf4 {[%clk 0:00:22]}  Qa4 {[%clk 0:00:05]} 36. Qxf7+ {[%clk 0:00:17]}  Kh6 {[%clk 0:00:05]} 37. f4 {[%clk 0:00:14]}  Qd1+ {[%clk 0:00:04]} 38. Kh2 {[%clk 0:00:14]} 1-0


[Site "https://www.chess.com"]

[Event "Titled Tuesday Blitz April 25 Late 2023"]
[White "Narayanan, Srinath"]
[Black "Korkmaz, Necmettin"]
[WhiteFideId "5018420"]
[BlackFideId "6303285"]
[WhiteElo "2438"]
[BlackElo "2097"]
[Result "1-0"]
[Round "02"]
[TimeControl "180+2"]
[Date "2023.04.25"]
[WhiteClock "0:02:15"]
[BlackClock "0:02:12"]

1. Nf3 {[%clk 0:03:00]}  d5 {[%clk 0:02:57]} 2. e3 {[%clk 0:03:00]}  Nf6 {[%clk 0:02:56]} 3. c4 {[%clk 0:03:01]}  c6 {[%clk 0:02:55]} 4. Nc3 {[%clk 0:03:01]}  e6 {[%clk 0:02:52]} 5. d4 {[%clk 0:03:00]}  Nbd7 {[%clk 0:02:52]} 6. Bd3 {[%clk 0:03:01]}  Bd6 {[%clk 0:02:50]} 7. O-O {[%clk 0:03:00]}  O-O {[%clk 0:02:50]} 8. e4 {[%clk 0:03:00]}  dxe4 {[%clk 0:02:50]} 9. Nxe4 {[%clk 0:03:01]}  Nxe4 {[%clk 0:02:50]} 10. Bxe4 {[%clk 0:03:02]}  h6 {[%clk 0:02:51]} 11. Bc2 {[%clk 0:03:01]}  e5 {[%clk 0:02:51]} 12. Qd3 {[%clk 0:03:00]}  f5 {[%clk 0:02:51]} 13. dxe5 {[%clk 0:02:37]}  Nxe5 {[%clk 0:02:50]} 14. Nxe5 {[%clk 0:02:35]}  Bxe5 {[%clk 0:02:51]} 15. Qb3 {[%clk 0:02:36]}  Qf6 {[%clk 0:02:45]} 16. Rb1 {[%clk 0:02:32]}  f4 {[%clk 0:02:42]} 17. Re1 {[%clk 0:02:27]}  c5 {[%clk 0:02:25]} 18. Qf3 {[%clk 0:02:23]}  Rb8 {[%clk 0:02:20]} 19. Qd5+ {[%clk 0:02:22]}  Be6 {[%clk 0:02:14]} 20. Qxe5 {[%clk 0:02:23]}  Bxc4 {[%clk 0:02:13]} 21. Qxf6 {[%clk 0:02:14]}  Rxf6 {[%clk 0:02:14]} 22. b3 {[%clk 0:02:15]}  Bd5 {[%clk 0:02:12]} 23. Bb2 {[%clk 0:02:16]}  Rg6 {[%clk 0:02:12]} 24. Bxg6 {[%clk 0:02:15]} 1-0


[Site "https://www.chess.com"]

[Event "Titled Tuesday Blitz April 25 Late 2023"]
[White "Kuzmin, Roman"]
[Black "Kravtsiv, Martyn"]
[WhiteFideId "44134932"]
[BlackFideId "14113147"]
[WhiteElo "2192"]
[BlackElo "2695"]
[Result "0-1"]
[Round "02"]
[TimeControl "180+2"]
[Date "2023.04.25"]
[WhiteClock "0:00:03"]
[BlackClock "0:00:37"]

1. e4 {[%clk 0:03:00]}  e5 {[%clk 0:02:59]} 2. Nf3 {[%clk 0:03:00]}  Nc6 {[%clk 0:03:00]} 3. Bb5 {[%clk 0:03:01]}  a6 {[%clk 0:02:59]} 4. Ba4 {[%clk 0:03:01]}  Nf6 {[%clk 0:02:58]} 5. O-O {[%clk 0:02:59]}  Be7 {[%clk 0:02:58]} 6. Re1 {[%clk 0:02:58]}  b5 {[%clk 0:02:56]} 7. Bb3 {[%clk 0:02:58]}  O-O {[%clk 0:02:57]} 8. a4 {[%clk 0:02:57]}  b4 {[%clk 0:02:56]} 9. d4 {[%clk 0:02:55]}  d6 {[%clk 0:02:56]} 10. dxe5 {[%clk 0:02:54]}  Nxe5 {[%clk 0:02:56]} 11. Nxe5 {[%clk 0:02:48]}  dxe5 {[%clk 0:02:57]} 12. Qxd8 {[%clk 0:02:47]}  Rxd8 {[%clk 0:02:56]} 13. f3 {[%clk 0:02:44]}  Bc5+ {[%clk 0:02:40]} 14. Kf1 {[%clk 0:02:39]}  a5 {[%clk 0:02:39]} 15. Bc4 {[%clk 0:02:39]}  Rd4 {[%clk 0:02:29]} 16. Be2 {[%clk 0:02:29]}  Rd6 {[%clk 0:01:49]} 17. Nd2 {[%clk 0:02:23]}  Be6 {[%clk 0:01:48]} 18. Nc4 {[%clk 0:02:07]}  Bxc4 {[%clk 0:01:42]} 19. Bxc4 {[%clk 0:02:08]}  Rad8 {[%clk 0:01:34]} 20. Ke2 {[%clk 0:01:42]}  h6 {[%clk 0:01:30]} 21. Be3 {[%clk 0:01:21]}  Bd4 {[%clk 0:01:23]} 22. Bxd4 {[%clk 0:01:08]}  Rxd4 {[%clk 0:01:24]} 23. Rad1 {[%clk 0:01:07]}  Kf8 {[%clk 0:01:19]} 24. Rxd4 {[%clk 0:00:51]}  Rxd4 {[%clk 0:01:19]} 25. Bb3 {[%clk 0:00:52]}  Nd7 {[%clk 0:01:17]} 26. c3 {[%clk 0:00:50]}  bxc3 {[%clk 0:01:15]} 27. bxc3 {[%clk 0:00:51]}  Rd6 {[%clk 0:01:15]} 28. Rd1 {[%clk 0:00:46]}  Ke7 {[%clk 0:01:13]} 29. Rd5 {[%clk 0:00:42]}  Rxd5 {[%clk 0:01:12]} 30. Bxd5 {[%clk 0:00:43]}  Nc5 {[%clk 0:01:09]} 31. Bc6 {[%clk 0:00:39]}  Kd6 {[%clk 0:01:07]} 32. Be8 {[%clk 0:00:39]}  f6 {[%clk 0:01:07]} 33. Kd2 {[%clk 0:00:29]}  c6 {[%clk 0:01:07]} 34. Kc2 {[%clk 0:00:30]}  Nxa4 {[%clk 0:01:07]} 35. Bf7 {[%clk 0:00:22]}  Kc5 {[%clk 0:01:05]} 36. Bb3 {[%clk 0:00:18]}  Nb6 {[%clk 0:01:05]} 37. Kd3 {[%clk 0:00:18]}  Nc8 {[%clk 0:00:57]} 38. Be6 {[%clk 0:00:15]}  Nd6 {[%clk 0:00:57]} 39. Bb3 {[%clk 0:00:14]}  Kb5 {[%clk 0:00:56]} 40. h3 {[%clk 0:00:11]}  a4 {[%clk 0:00:52]} 41. Ba2 {[%clk 0:00:11]}  Nb7 {[%clk 0:00:49]} 42. Bc4+ {[%clk 0:00:11]}  Ka5 {[%clk 0:00:48]} 43. Ba2 {[%clk 0:00:12]}  Nd6 {[%clk 0:00:47]} 44. Be6 {[%clk 0:00:10]}  Kb5 {[%clk 0:00:47]} 45. Ba2 {[%clk 0:00:11]}  c5 {[%clk 0:00:46]} 46. h4 {[%clk 0:00:10]}  c4+ {[%clk 0:00:45]} 47. Kc2 {[%clk 0:00:08]}  f5 {[%clk 0:00:41]} 48. exf5 {[%clk 0:00:06]}  Nxf5 {[%clk 0:00:42]} 49. Kd2 {[%clk 0:00:06]}  Nxh4 {[%clk 0:00:42]} 50. Ke3 {[%clk 0:00:06]}  Nxg2+ {[%clk 0:00:42]} 51. Ke4 {[%clk 0:00:07]}  Ne1 {[%clk 0:00:39]} 52. Kd5 {[%clk 0:00:02]}  Nxf3 {[%clk 0:00:38]} 53. Bxc4+ {[%clk 0:00:03]}  Kb6 {[%clk 0:00:38]} 54. Ke4 {[%clk 0:00:03]}  Nd2+ {[%clk 0:00:37]} 0-1


[Site "https://www.chess.com"]

[Event "Titled Tuesday Blitz April 25 Late 2023"]
[White "Baskakov, Egor"]
[Black "Ladan, Nicholas"]
[WhiteFideId "24197866"]
[BlackFideId "30918855"]
[WhiteElo "2212"]
[BlackElo "2167"]
[Result "0-1"]
[Round "02"]
[TimeControl "180+2"]
[Date "2023.04.25"]
[WhiteClock "0:00:20"]
[BlackClock "0:00:21"]

1. e4 {[%clk 0:03:00]}  e5 {[%clk 0:03:00]} 2. Nc3 {[%clk 0:03:00]}  Nc6 {[%clk 0:02:59]} 3. g3 {[%clk 0:03:00]}  f5 {[%clk 0:02:58]} 4. d3 {[%clk 0:02:57]}  Nf6 {[%clk 0:02:58]} 5. Bg2 {[%clk 0:02:58]}  d6 {[%clk 0:02:57]} 6. exf5 {[%clk 0:02:56]}  Bxf5 {[%clk 0:02:57]} 7. Nge2 {[%clk 0:02:57]}  Be7 {[%clk 0:02:53]} 8. h3 {[%clk 0:02:57]}  O-O {[%clk 0:02:52]} 9. O-O {[%clk 0:02:57]}  Qd7 {[%clk 0:02:51]} 10. Kh2 {[%clk 0:02:58]}  Rae8 {[%clk 0:02:47]} 11. Be3 {[%clk 0:02:52]}  d5 {[%clk 0:02:43]} 12. d4 {[%clk 0:02:52]}  e4 {[%clk 0:02:39]} 13. Qd2 {[%clk 0:02:47]}  Bd6 {[%clk 0:02:38]} 14. Bf4 {[%clk 0:02:38]}  Ne7 {[%clk 0:02:28]} 15. Rae1 {[%clk 0:02:36]}  Ng6 {[%clk 0:02:27]} 16. Bxd6 {[%clk 0:02:35]}  Qxd6 {[%clk 0:02:28]} 17. Nd1 {[%clk 0:02:31]}  Nh4 {[%clk 0:02:21]} 18. Qg5 {[%clk 0:02:27]}  Nxg2 {[%clk 0:02:20]} 19. Kxg2 {[%clk 0:02:28]}  Qd7 {[%clk 0:02:18]} 20. g4 {[%clk 0:02:24]}  Nxg4 {[%clk 0:02:07]} 21. hxg4 {[%clk 0:02:23]}  Bxg4 {[%clk 0:02:08]} 22. Ng1 {[%clk 0:02:06]}  Rf6 {[%clk 0:01:59]} 23. f3 {[%clk 0:01:28]}  Rg6 {[%clk 0:01:55]} 24. Qxg6 {[%clk 0:01:27]}  hxg6 {[%clk 0:01:55]} 25. fxg4 {[%clk 0:01:28]}  Qxg4+ {[%clk 0:01:55]} 26. Kh2 {[%clk 0:01:28]}  Re6 {[%clk 0:01:21]} 27. Ne3 {[%clk 0:01:18]}  Qh4+ {[%clk 0:01:10]} 28. Nh3 {[%clk 0:01:18]}  Rf6 {[%clk 0:01:09]} 29. Nxd5 {[%clk 0:01:08]}  Rf3 {[%clk 0:01:03]} 30. Rxf3 {[%clk 0:00:59]}  exf3 {[%clk 0:00:56]} 31. Rf1 {[%clk 0:00:53]}  Qxd4 {[%clk 0:00:52]} 32. Ndf4 {[%clk 0:00:53]}  g5 {[%clk 0:00:46]} 33. Rxf3 {[%clk 0:00:28]}  gxf4 {[%clk 0:00:45]} 34. Rxf4 {[%clk 0:00:29]}  Qxb2 {[%clk 0:00:42]} 35. Kg3 {[%clk 0:00:27]}  Qxc2 {[%clk 0:00:42]} 36. Ng5 {[%clk 0:00:22]}  Qxa2 {[%clk 0:00:33]} 37. Rd4 {[%clk 0:00:23]}  Qa3+ {[%clk 0:00:32]} 38. Kg4 {[%clk 0:00:23]}  Qe7 {[%clk 0:00:31]} 39. Re4 {[%clk 0:00:23]}  Qd7+ {[%clk 0:00:30]} 40. Kh5 {[%clk 0:00:22]}  a5 {[%clk 0:00:28]} 41. Kg6 {[%clk 0:00:22]}  a4 {[%clk 0:00:22]} 42. Rf4 {[%clk 0:00:20]}  Qd6+ {[%clk 0:00:21]} 0-1


[Site "https://www.chess.com"]

[Event "Titled Tuesday Blitz April 25 Late 2023"]
[White "Rodriguez Garcia, Yuliesky"]
[Black "Janik, Igor"]
[WhiteFideId "3516660"]
[BlackFideId "1159259"]
[WhiteElo "2157"]
[BlackElo "2484"]
[Result "0-1"]
[Round "02"]
[TimeControl "180+2"]
[Date "2023.04.25"]
[WhiteClock "0:00:06"]
[BlackClock "0:00:23"]

1. e4 {[%clk 0:02:56]}  Nf6 {[%clk 0:02:59]} 2. e5 {[%clk 0:02:53]}  Ng8 {[%clk 0:02:59]} 3. Nf3 {[%clk 0:02:52]}  d6 {[%clk 0:02:50]} 4. h3 {[%clk 0:02:47]}  Nc6 {[%clk 0:02:49]} 5. Bb5 {[%clk 0:02:46]}  Bd7 {[%clk 0:02:49]} 6. exd6 {[%clk 0:02:41]}  cxd6 {[%clk 0:02:48]} 7. O-O {[%clk 0:02:41]}  g6 {[%clk 0:02:47]} 8. Re1 {[%clk 0:02:40]}  Bg7 {[%clk 0:02:47]} 9. d4 {[%clk 0:02:36]}  Nf6 {[%clk 0:02:45]} 10. Qe2 {[%clk 0:02:31]}  O-O {[%clk 0:02:42]} 11. c3 {[%clk 0:02:30]}  Re8 {[%clk 0:02:41]} 12. Bg5 {[%clk 0:02:27]}  h6 {[%clk 0:02:41]} 13. Bh4 {[%clk 0:02:27]}  Nh5 {[%clk 0:02:18]} 14. Bc4 {[%clk 0:02:03]}  Qb6 {[%clk 0:02:06]} 15. Nbd2 {[%clk 0:01:29]}  e5 {[%clk 0:01:39]} 16. Qd3 {[%clk 0:01:12]}  Bf5 {[%clk 0:01:28]} 17. Qf1 {[%clk 0:01:11]}  g5 {[%clk 0:01:20]} 18. g4 {[%clk 0:00:50]}  gxh4 {[%clk 0:01:16]} 19. Nxh4 {[%clk 0:00:33]}  Bh7 {[%clk 0:01:12]} 20. gxh5 {[%clk 0:00:32]}  exd4 {[%clk 0:01:13]} 21. Qg2 {[%clk 0:00:15]}  dxc3 {[%clk 0:01:09]} 22. bxc3 {[%clk 0:00:16]}  Ne5 {[%clk 0:01:06]} 23. Bb3 {[%clk 0:00:15]}  Qd8 {[%clk 0:00:53]} 24. Nhf3 {[%clk 0:00:15]}  Nd3 {[%clk 0:00:50]} 25. Rxe8+ {[%clk 0:00:14]}  Qxe8 {[%clk 0:00:51]} 26. Nc4 {[%clk 0:00:15]}  Nf4 {[%clk 0:00:42]} 27. Qh2 {[%clk 0:00:13]}  Ne2+ {[%clk 0:00:41]} 28. Kh1 {[%clk 0:00:14]}  Qc6 {[%clk 0:00:37]} 29. Qg2 {[%clk 0:00:12]}  Nf4 {[%clk 0:00:36]} 30. Qg3 {[%clk 0:00:12]}  Nxh5 {[%clk 0:00:36]} 31. Qg4 {[%clk 0:00:12]}  Nf6 {[%clk 0:00:36]} 32. Qf4 {[%clk 0:00:11]}  Ne4 {[%clk 0:00:28]} 33. Re1 {[%clk 0:00:09]}  Nxf2+ {[%clk 0:00:27]} 34. Kg1 {[%clk 0:00:09]}  Nd3 {[%clk 0:00:27]} 35. Qxf7+ {[%clk 0:00:07]}  Kxf7 {[%clk 0:00:25]} 36. Nce5+ {[%clk 0:00:08]}  Kf8 {[%clk 0:00:24]} 37. Nxc6 {[%clk 0:00:09]}  Nxe1 {[%clk 0:00:23]} 38. Nxe1 {[%clk 0:00:06]}  bxc6 {[%clk 0:00:23]} 0-1


[Site "https://www.chess.com"]

[Event "Titled Tuesday Blitz April 25 Late 2023"]
[White "Smirnov, Pavel"]
[Black "Hnydiuk, Aleksander"]
[WhiteFideId "4123425"]
[BlackFideId "1109057"]
[WhiteElo "2519"]
[BlackElo "2374"]
[Result "1-0"]
[Round "02"]
[TimeControl "180+2"]
[Date "2023.04.25"]
[WhiteClock "0:01:05"]
[BlackClock "0:00:05"]

1. d4 {[%clk 0:03:00]}  d5 {[%clk 0:02:56]} 2. c4 {[%clk 0:03:01]}  c6 {[%clk 0:02:56]} 3. Nf3 {[%clk 0:03:01]}  Nf6 {[%clk 0:02:56]} 4. e3 {[%clk 0:03:02]}  a6 {[%clk 0:02:54]} 5. Nc3 {[%clk 0:03:01]}  b5 {[%clk 0:02:54]} 6. b3 {[%clk 0:03:02]}  Bf5 {[%clk 0:02:53]} 7. Bd3 {[%clk 0:03:00]}  Bxd3 {[%clk 0:02:44]} 8. Qxd3 {[%clk 0:03:01]}  e6 {[%clk 0:02:44]} 9. O-O {[%clk 0:03:01]}  Bb4 {[%clk 0:02:45]} 10. Bd2 {[%clk 0:02:58]}  O-O {[%clk 0:02:40]} 11. Rac1 {[%clk 0:02:42]}  Qe7 {[%clk 0:02:36]} 12. Ne5 {[%clk 0:02:39]}  Nfd7 {[%clk 0:02:35]} 13. f4 {[%clk 0:02:28]}  Nxe5 {[%clk 0:02:33]} 14. fxe5 {[%clk 0:02:27]}  Nd7 {[%clk 0:02:32]} 15. cxd5 {[%clk 0:02:25]}  cxd5 {[%clk 0:02:28]} 16. e4 {[%clk 0:02:21]}  Bxc3 {[%clk 0:02:12]} 17. Bxc3 {[%clk 0:02:19]}  dxe4 {[%clk 0:02:10]} 18. Qxe4 {[%clk 0:02:18]}  Nb6 {[%clk 0:02:10]} 19. Bd2 {[%clk 0:02:10]}  Nd5 {[%clk 0:02:08]} 20. Rf3 {[%clk 0:02:08]}  Rac8 {[%clk 0:01:48]} 21. Rcf1 {[%clk 0:02:04]}  f5 {[%clk 0:01:44]} 22. exf6 {[%clk 0:02:00]}  Nxf6 {[%clk 0:01:43]} 23. Qh4 {[%clk 0:01:50]}  Qd7 {[%clk 0:01:36]} 24. Bg5 {[%clk 0:01:47]}  Nd5 {[%clk 0:01:24]} 25. Rxf8+ {[%clk 0:01:39]}  Rxf8 {[%clk 0:01:25]} 26. Rxf8+ {[%clk 0:01:39]}  Kxf8 {[%clk 0:01:26]} 27. Qxh7 {[%clk 0:01:40]}  Qc6 {[%clk 0:01:26]} 28. h3 {[%clk 0:01:35]}  Qc3 {[%clk 0:01:20]} 29. Qe4 {[%clk 0:01:35]}  Kf7 {[%clk 0:01:07]} 30. Kh2 {[%clk 0:01:22]}  Qc7+ {[%clk 0:01:05]} 31. Kg1 {[%clk 0:01:21]}  Qc3 {[%clk 0:01:03]} 32. h4 {[%clk 0:01:21]}  Qa1+ {[%clk 0:00:49]} 33. Kh2 {[%clk 0:01:19]}  Qxa2 {[%clk 0:00:49]} 34. h5 {[%clk 0:01:19]}  Qxb3 {[%clk 0:00:39]} 35. Qg6+ {[%clk 0:01:18]}  Kf8 {[%clk 0:00:36]} 36. Qxe6 {[%clk 0:01:18]}  Qc4 {[%clk 0:00:29]} 37. h6 {[%clk 0:01:18]}  Qc7+ {[%clk 0:00:24]} 38. Kh3 {[%clk 0:01:06]}  Nf4+ {[%clk 0:00:15]} 39. Bxf4 {[%clk 0:01:06]}  Qxf4 {[%clk 0:00:16]} 40. Qc8+ {[%clk 0:01:06]}  Kf7 {[%clk 0:00:15]} 41. Qd7+ {[%clk 0:01:06]}  Kf6 {[%clk 0:00:10]} 42. Qxg7+ {[%clk 0:01:05]}  Ke6 {[%clk 0:00:10]} 43. h7 {[%clk 0:01:05]}  Qe3+ {[%clk 0:00:08]} 44. g3 {[%clk 0:01:04]}  Qe1 {[%clk 0:00:05]} 45. Qe5+ {[%clk 0:01:04]}  Qxe5 {[%clk 0:00:05]} 46. dxe5 {[%clk 0:01:05]} 1-0


[Site "https://www.chess.com"]

[Event "Titled Tuesday Blitz April 25 Late 2023"]
[White "Petrovic, Aleksa"]
[Black "Rozen, Eytan"]
[WhiteFideId "967629"]
[BlackFideId "2816750"]
[WhiteElo "2309"]
[BlackElo "2451"]
[Result "0-1"]
[Round "02"]
[TimeControl "180+2"]
[Date "2023.04.25"]
[WhiteClock "0:00:02"]
[BlackClock "0:00:14"]

1. d4 {[%clk 0:02:57]}  d5 {[%clk 0:02:58]} 2. c4 {[%clk 0:02:56]}  e6 {[%clk 0:02:58]} 3. Nf3 {[%clk 0:02:56]}  Nf6 {[%clk 0:02:57]} 4. Nc3 {[%clk 0:02:56]}  a6 {[%clk 0:02:46]} 5. cxd5 {[%clk 0:02:54]}  exd5 {[%clk 0:02:47]} 6. Bg5 {[%clk 0:02:54]}  Be6 {[%clk 0:02:47]} 7. e3 {[%clk 0:02:54]}  c6 {[%clk 0:02:41]} 8. Bd3 {[%clk 0:02:54]}  Nbd7 {[%clk 0:02:39]} 9. O-O {[%clk 0:02:53]}  Bd6 {[%clk 0:02:39]} 10. Bf4 {[%clk 0:02:53]}  Qc7 {[%clk 0:02:33]} 11. Ne2 {[%clk 0:02:51]}  O-O {[%clk 0:02:27]} 12. Qc2 {[%clk 0:02:49]}  h6 {[%clk 0:02:24]} 13. h3 {[%clk 0:02:48]}  Rfe8 {[%clk 0:02:19]} 14. b4 {[%clk 0:02:44]}  Ne4 {[%clk 0:01:59]} 15. a4 {[%clk 0:02:35]}  g5 {[%clk 0:01:32]} 16. Bxd6 {[%clk 0:02:29]}  Qxd6 {[%clk 0:01:33]} 17. b5 {[%clk 0:02:23]}  axb5 {[%clk 0:01:30]} 18. axb5 {[%clk 0:02:24]}  f5 {[%clk 0:01:22]} 19. Rxa8 {[%clk 0:02:17]}  Rxa8 {[%clk 0:01:18]} 20. bxc6 {[%clk 0:02:18]}  bxc6 {[%clk 0:01:17]} 21. Rc1 {[%clk 0:02:17]}  Rc8 {[%clk 0:01:12]} 22. Bxe4 {[%clk 0:01:46]}  fxe4 {[%clk 0:01:08]} 23. Ne5 {[%clk 0:01:44]}  Nxe5 {[%clk 0:01:06]} 24. dxe5 {[%clk 0:01:45]}  Qxe5 {[%clk 0:01:07]} 25. Qc5 {[%clk 0:01:45]}  Bd7 {[%clk 0:01:02]} 26. Nd4 {[%clk 0:01:43]}  Kf7 {[%clk 0:01:01]} 27. Ra1 {[%clk 0:01:39]}  Rb8 {[%clk 0:00:55]} 28. g3 {[%clk 0:01:16]}  Qe7 {[%clk 0:00:55]} 29. Qa7 {[%clk 0:01:06]}  Rc8 {[%clk 0:00:45]} 30. Qb7 {[%clk 0:01:02]}  Bxh3 {[%clk 0:00:39]} 31. Qb6 {[%clk 0:00:42]}  Qf6 {[%clk 0:00:25]} 32. Ra7+ {[%clk 0:00:39]}  Kg6 {[%clk 0:00:25]} 33. Qb7 {[%clk 0:00:35]}  Rf8 {[%clk 0:00:24]} 34. Qh7+ {[%clk 0:00:13]}  Kh5 {[%clk 0:00:24]} 35. f4 {[%clk 0:00:12]}  exf3 {[%clk 0:00:20]} 36. Kf2 {[%clk 0:00:12]}  c5 {[%clk 0:00:20]} 37. g4+ {[%clk 0:00:09]}  Bxg4 {[%clk 0:00:15]} 38. Ra1 {[%clk 0:00:06]}  Bh3 {[%clk 0:00:15]} 39. Rh1 {[%clk 0:00:05]}  g4 {[%clk 0:00:15]} 40. Qd7 {[%clk 0:00:03]}  Qh4+ {[%clk 0:00:13]} 41. Kg1 {[%clk 0:00:02]}  Qg3# {[%clk 0:00:14]} 0-1


[Site "https://www.chess.com"]

[Event "Titled Tuesday Blitz April 25 Late 2023"]
[White "Silva, Miguel Antonio Neto"]
[Black "Harshavardhan G B"]
[WhiteFideId "1911929"]
[BlackFideId "25059009"]
[WhiteElo "2223"]
[BlackElo "2323"]
[Result "0-1"]
[Round "02"]
[TimeControl "180+2"]
[Date "2023.04.25"]
[WhiteClock "0:00:16"]
[BlackClock "0:01:06"]

1. d4 {[%clk 0:03:00]}  Nf6 {[%clk 0:02:59]} 2. Nf3 {[%clk 0:02:55]}  g6 {[%clk 0:03:00]} 3. Bf4 {[%clk 0:02:55]}  Bg7 {[%clk 0:03:00]} 4. e3 {[%clk 0:02:55]}  O-O {[%clk 0:03:00]} 5. h3 {[%clk 0:02:55]}  d6 {[%clk 0:03:00]} 6. Nbd2 {[%clk 0:02:55]}  Nc6 {[%clk 0:03:00]} 7. c3 {[%clk 0:02:54]}  Nd7 {[%clk 0:03:00]} 8. Be2 {[%clk 0:02:49]}  e5 {[%clk 0:02:59]} 9. Bh2 {[%clk 0:02:49]}  Qe7 {[%clk 0:02:59]} 10. O-O {[%clk 0:02:47]}  Kh8 {[%clk 0:02:58]} 11. b4 {[%clk 0:02:42]}  f5 {[%clk 0:02:58]} 12. b5 {[%clk 0:02:42]}  Nd8 {[%clk 0:02:57]} 13. Nc4 {[%clk 0:02:23]}  Nf7 {[%clk 0:02:56]} 14. a4 {[%clk 0:02:20]}  e4 {[%clk 0:02:51]} 15. Nfd2 {[%clk 0:02:19]}  Nf6 {[%clk 0:02:50]} 16. a5 {[%clk 0:02:16]}  g5 {[%clk 0:02:34]} 17. b6 {[%clk 0:02:15]}  d5 {[%clk 0:02:32]} 18. Ne5 {[%clk 0:02:14]}  c6 {[%clk 0:02:28]} 19. a6 {[%clk 0:02:08]}  axb6 {[%clk 0:02:23]} 20. Qb3 {[%clk 0:01:57]}  Nxe5 {[%clk 0:02:13]} 21. Bxe5 {[%clk 0:01:56]}  Nd7 {[%clk 0:02:11]} 22. Bc7 {[%clk 0:01:46]}  b5 {[%clk 0:02:07]} 23. a7 {[%clk 0:01:43]}  f4 {[%clk 0:02:06]} 24. Bg4 {[%clk 0:01:38]}  Nf6 {[%clk 0:02:04]} 25. Bxc8 {[%clk 0:01:37]}  Qxc7 {[%clk 0:02:03]} 26. Bf5 {[%clk 0:01:31]}  Ne8 {[%clk 0:01:44]} 27. Bg4 {[%clk 0:01:16]}  b6 {[%clk 0:01:37]} 28. Qa3 {[%clk 0:01:07]}  Rf7 {[%clk 0:01:25]} 29. Rfb1 {[%clk 0:00:57]}  Rxa7 {[%clk 0:01:21]} 30. Qb4 {[%clk 0:00:52]}  Bf8 {[%clk 0:01:19]} 31. Qb3 {[%clk 0:00:47]}  fxe3 {[%clk 0:01:10]} 32. fxe3 {[%clk 0:00:47]}  Qg3 {[%clk 0:01:08]} 33. Nf1 {[%clk 0:00:19]}  Qf2+ {[%clk 0:01:06]} 34. Kh1 {[%clk 0:00:18]}  Bd6 {[%clk 0:01:07]} 35. Rxa7 {[%clk 0:00:16]}  Qxf1+ {[%clk 0:01:06]} 0-1


[Site "https://www.chess.com"]